bitfinex/quotes_SOLUSD_20241111
["timestamp","ask_amount","ask_price","bid_price","bid_amount"]
[1731312511153,28.78,208.16,208.09,16.60277562]
[1731312511950,28.78,208.14,208.11,16.60277562]
[1731312512346,28.78,208.17,208.13,16.60277562]
[1731312512962,28.78,208.19,208.13,16.60277562]
[1731312513448,15.6785,208.2,208.15,16.60277562]
[1731312516260,15.6785,208.2,208.17,16.60277562]
[1731312516560,15.6785,208.2,208.15,16.60277562]
[1731312517754,15.6785,208.2,208.13,16.60277562]
[1731312518176,49.2616,208.2,208.13,16.60277562]
[1731312520074,44.4585,208.2,208.13,16.60277562]
[1731312520370,41.91898817,208.2,208.15,16.60277562]
[1731312520575,46.72208817,208.2,208.13,16.60277562]
[1731312520779,41.91898817,208.2,208.13,16.60277562]
[1731312521080,28.78,208.21,208.17,16.60277562]
[1731312521954,28.78,208.21,208.19,16.60277562]
[1731312522164,35.1066,208.27,208.19,16.60277562]
[1731312522351,35.1066,208.27,208.23,16.60277562]
[1731312522669,6.3266,208.31,208.23,16.60277562]
[1731312522860,6.3266,208.31,208.25,16.60277562]
[1731312523261,28.78,208.3,208.23,16.60277562]
[1731312523459,16.60277562,208.29,208.21,16.60277562]
[1731312523651,28.78,208.28,208.21,16.60277562]
[1731312523858,33.5813,208.28,208.21,16.60277562]
[1731312524561,23.776884,208.27,208.19,16.60277562]
[1731312524766,28.78,208.24,208.17,16.60277562]
[1731312525372,15.6217,208.31,208.23,33.20555124]
[1731312525581,160.0,208.46,208.19,0.1]
[1731312525582,6.4655,208.36,208.22,0.1]
[1731312525749,11.2649,208.36,208.3,16.60277562]
[1731312526079,21.52883168,208.35,208.26,16.60277562]
[1731312526574,28.78,208.34,208.28,16.60277562]
[1731312526763,4.92605606,208.35,208.21,0.1]
[1731312526970,6.4655,208.36,208.29,16.60277562]
[1731312527157,11.2648,208.36,208.29,16.60277562]
[1731312527362,16.60277562,208.35,208.27,16.60277562]
[1731312527675,45.38277562,208.35,208.27,16.60277562]
[1731312527878,33.5798,208.34,208.27,16.60277562]
[1731312528170,23.776884,208.33,208.27,16.60277562]
[1731312528761,23.776884,208.33,208.28,26.52769184]
[1731312529271,52.556884,208.33,208.26,26.52769184]
[1731312529772,79.08457584,208.3,208.22,26.52769184]
[1731312529950,4.8009,208.29,208.21,26.52769184]
[1731312530275,16.2897,208.27,208.21,26.52769184]
[1731312530859,6.4571,208.25,208.11,16.0213]
[1731312531061,6.4571,208.25,208.17,26.52769184]
[1731312531262,79.08457584,208.24,208.17,26.52769184]
[1731312531472,79.08457584,208.24,208.15,26.52769184]
[1731312532672,28.78,208.22,208.15,26.52769184]
[1731312532867,52.556884,208.22,208.15,26.52769184]
[1731312534075,35.2371,208.25,208.2,26.52769184]
[1731312534274,35.2371,208.25,208.18,26.52769184]
[1731312535181,6.4571,208.25,208.2,26.52769184]
[1731312535780,28.78,208.24,208.22,26.52769184]
[1731312536758,4.8013,208.28,208.22,26.52769184]
[1731312536973,4.8013,208.28,208.16,20.0]
[1731312536974,28.78,208.28,208.24,26.52769184]
[1731312537783,28.78,208.28,208.22,26.52769184]
[1731312538077,28.78,208.29,208.22,26.52769184]
[1731312538683,28.78,208.27,208.22,26.52769184]
[1731312538862,28.78,208.27,208.16,36.4253]
[1731312538863,28.78,208.27,208.2,26.52769184]
[1731312539263,33.5814,208.27,208.2,26.52769184]
[1731312540467,23.776884,208.26,208.2,26.52769184]
[1731312540669,28.78,208.23,208.18,26.52769184]
[1731312540868,28.78,208.23,208.16,26.52769184]
[1731312540869,28.78,208.21,208.16,26.52769184]
[1731312541080,6.5311,208.22,208.16,26.52769184]
[1731312541271,6.5311,208.22,208.2,26.52769184]
[1731312541475,28.78,208.23,208.2,26.52769184]
[1731312542075,28.78,208.26,208.18,26.52769184]
[1731312542391,28.78,208.24,208.16,26.52769184]
[1731312542684,28.78,208.24,208.18,26.52769184]
[1731312543779,28.78,208.23,208.18,26.52769184]
[1731312543988,28.78,208.23,208.16,26.52769184]
[1731312544685,28.78,208.22,208.16,26.52769184]
[1731312544985,45.2506,208.22,208.14,26.52769184]
[1731312545190,28.78,208.2,208.14,26.52769184]
[1731312545868,28.78,208.18,208.12,26.52769184]
[1731312546066,28.78,208.18,208.05,15.6099]
[1731312546067,34.9003,208.18,208.1,26.52769184]
[1731312546284,28.78,208.16,208.1,26.52769184]
[1731312547677,28.78,208.2,208.15,26.52769184]
[1731312548782,28.78,208.21,208.16,16.59920719]
[1731312549287,28.78,208.21,208.18,16.59920719]
[1731312549679,28.78,208.21,208.16,16.59920719]
[1731312551392,28.78,208.19,208.14,16.59920719]
[1731312551685,28.78,208.19,208.12,16.59920719]
[1731312553571,33.5833,208.19,208.12,16.59920719]
[1731312554692,33.5833,208.19,208.14,16.59920719]
[1731312554879,28.78,208.21,208.16,16.59920719]
[1731312555185,33.5828,208.21,208.14,16.59920719]
[1731312555389,28.78,208.19,208.12,16.59920719]
[1731312556468,28.78,208.19,208.05,21.25726993]
[1731312556469,28.78,208.21,208.14,16.59920719]
[1731312556669,28.78,208.21,208.16,16.59920719]
[1731312557296,28.78,208.21,208.14,16.59920719]
[1731312557496,28.78,208.28,208.13,16.1616]
[1731312557793,15.3708,208.34,208.27,16.59920719]
[1731312557972,15.3708,208.34,208.31,16.59920719]
[1731312558177,6.3837,208.36,208.31,16.59920719]
[1731312558386,6.3837,208.36,208.35,16.59920719]
[1731312558690,15.3708,208.39,208.35,16.59920719]
[1731312558875,15.3708,208.39,208.27,0.1]
[1731312558876,6.3837,208.41,208.38,16.59920719]
[1731312559074,15.3708,208.44,208.4,16.59920719]
[1731312559276,6.3837,208.46,208.3,0.2]
[1731312559592,28.78,208.45,208.42,16.59920719]
[1731312560296,6.3837,208.46,208.42,16.59920719]
[1731312560872,6.3837,208.46,208.43,26.49110123]
[1731312561789,6.3837,208.46,208.41,26.49110123]
[1731312562189,6.3837,208.46,208.39,26.49110123]
[1731312562488,6.3837,208.46,208.41,26.49110123]
[1731312562694,6.3837,208.46,208.39,26.49110123]
[1731312563484,11.1807,208.46,208.39,26.49110123]
[1731312564094,6.3837,208.46,208.39,26.49110123]
[1731312564593,6.3837,208.46,208.41,26.49110123]
[1731312565688,6.3837,208.46,208.39,26.49110123]
[1731312566884,6.3837,208.46,208.41,26.49110123]
[1731312568090,6.3837,208.46,208.39,26.49110123]
[1731312568284,11.1809,208.46,208.39,26.49110123]
[1731312569000,26.49110123,208.43,208.35,26.49110123]
[1731312569293,26.49110123,208.41,208.33,26.49110123]
[1731312569508,26.49110123,208.41,208.24,0.1]
[1731312569509,26.49110123,208.37,208.29,26.49110123]
[1731312569876,23.776884,208.36,208.29,26.49110123]
[1731312570302,6.5804,208.34,208.27,26.49110123]
[1731312570697,28.78,208.33,208.27,26.49110123]
[1731312571385,55.27110123,208.33,208.25,26.49110123]
[1731312572697,28.78,208.28,208.21,26.49110123]
[1731312572903,28.78,208.23,208.16,26.49110123]
[1731312573077,28.78,208.23,208.06,16.6482]
[1731312573078,28.78,208.23,208.18,26.49110123]
[1731312574214,28.78,208.25,208.18,26.49110123]
[1731312575088,28.78,208.25,208.06,25.74160719]
[1731312575089,28.78,208.21,208.16,26.49110123]
[1731312576201,6.4037,208.22,208.16,26.49110123]
[1731312576875,6.4037,208.22,208.18,26.49110123]
[1731312577079,6.4037,208.22,208.2,26.49110123]
[1731312577701,28.78,208.25,208.2,26.49110123]
[1731312578086,16.0058,208.26,208.2,26.49110123]
[1731312578701,16.0058,208.26,208.12,26.69110123]
[1731312578702,6.4096,208.27,208.24,26.49110123]
[1731312579002,6.4096,208.27,208.22,26.49110123]
[1731312579209,6.4096,208.27,208.24,26.49110123]
[1731312581393,6.4096,208.27,208.22,26.49110123]
[1731312581906,35.1896,208.27,208.22,26.49110123]
[1731312588513,39.9911,208.27,208.2,26.49110123]
[1731312589011,35.1896,208.27,208.2,16.59306652]
[1731312589786,28.78,208.29,208.22,16.59306652]
[1731312590007,28.78,208.29,208.24,16.59306652]
[1731312590802,28.78,208.28,208.24,16.59306652]
[1731312591818,28.78,208.3,208.24,16.59306652]
[1731312592598,28.78,208.3,208.22,16.59306652]
[1731312592795,33.5808,208.3,208.22,16.59306652]
[1731312595614,50.17386652,208.3,208.22,16.59306652]
[1731312596120,45.37306652,208.28,208.2,16.59306652]
[1731312596502,45.37306652,208.28,208.22,16.59306652]
[1731312596503,28.78,208.28,208.22,16.59306652]
[1731312596702,28.78,208.28,208.2,16.59306652]
[1731312597011,33.5814,208.28,208.2,16.59306652]
[1731312598318,28.78,208.26,208.18,16.59306652]
[1731312598496,28.78,208.26,208.2,16.59306652]
[1731312599901,45.37306652,208.25,208.18,16.59306652]
[1731312601419,50.17496652,208.25,208.18,16.59306652]
[1731312602730,28.78,208.2,208.12,16.59306652]
[1731312603298,28.78,208.2,208.16,16.59306652]
[1731312603715,28.78,208.22,208.16,16.59306652]
[1731312604517,28.78,208.22,208.13,16.59306652]
[1731312604518,34.8832,208.2,208.13,16.59306652]
[1731312605404,34.8832,208.2,208.15,16.59306652]
[1731312606402,28.78,208.18,208.11,16.59306652]
[1731312606818,28.78,208.18,208.13,16.59306652]
[1731312607625,28.78,208.19,208.13,16.59306652]
[1731312607822,33.5834,208.19,208.13,16.59306652]
[1731312608723,50.17646652,208.19,208.11,16.59306652]
[1731312608913,28.78,208.16,208.08,16.59306652]
[1731312609106,28.78,208.16,208.1,16.59306652]
[1731312610012,28.78,208.17,208.1,16.59306652]
[1731312610920,28.78,208.18,208.1,16.59306652]
[1731312611926,28.78,208.18,208.12,16.59306652]
[1731312612628,28.78,208.16,208.1,16.59306652]
[1731312613125,28.78,208.16,208.08,16.59306652]
[1731312613328,4.8036,208.18,208.08,16.59306652]
[1731312613329,28.78,208.14,208.08,16.59306652]
[1731312613619,16.59306652,208.15,207.96,101.9463]
[1731312613620,28.78,208.08,208.0,16.59306652]
[1731312613828,28.78,208.08,208.02,16.59306652]
[1731312614618,33.5858,208.08,208.02,16.59306652]
[1731312615205,28.78,208.08,208.02,16.59306652]
[1731312616020,33.5858,208.08,208.0,16.59306652]
[1731312616224,28.78,208.06,207.98,16.59306652]
[1731312616408,28.78,208.04,207.98,16.59306652]
[1731312617029,16.2292,208.03,207.98,16.59306652]
[1731312617209,28.78,208.02,207.96,16.59306652]
[1731312617408,32.82226652,208.03,207.85,15.3155]
[1731312617409,28.78,207.98,207.85,15.3155]
[1731312617609,28.78,207.98,207.91,16.59306652]
[1731312618716,28.78,207.96,207.91,16.59306652]
[1731312619217,28.78,207.96,207.92,16.59306652]
[1731312619727,28.78,207.98,207.92,16.59306652]
[1731312620420,50.18136652,207.98,207.9,16.59306652]
[1731312620616,45.37306652,207.96,207.88,16.59306652]
[1731312620923,45.37306652,207.94,207.87,16.59306652]
[1731312621127,45.37306652,207.94,207.85,16.59306652]
[1731312621331,28.78,207.94,207.87,16.59306652]
[1731312621518,28.78,207.94,207.89,16.59306652]
[1731312621844,28.78,207.94,207.92,16.59306652]
[1731312622018,16.59306652,207.99,207.92,16.59306652]
[1731312622019,28.78,207.98,207.92,16.59306652]
[1731312622223,28.78,207.96,207.9,16.59306652]
[1731312623435,28.78,207.96,207.8,16.6748]
[1731312623436,28.78,207.94,207.88,16.59306652]
[1731312623629,28.78,207.94,207.81,20.0]
[1731312624116,28.78,207.94,207.88,16.59306652]
[1731312627145,28.78,207.96,207.9,16.59306652]
[1731312629027,28.78,207.98,207.9,16.59306652]
[1731312629420,28.78,207.96,207.9,16.59306652]
[1731312630028,28.78,207.96,207.91,20.0]
[1731312630238,28.78,207.96,207.9,16.59306652]
[1731312630747,21.40096652,207.99,207.92,16.59306652]
[1731312630748,28.78,207.98,207.92,16.59306652]
[1731312632323,28.78,207.96,207.9,16.59306652]
[1731312632641,28.78,207.96,207.88,16.59306652]
[1731312632816,28.78,207.94,207.88,16.59306652]
[1731312633022,28.78,207.94,207.81,20.0]
[1731312633023,28.78,207.94,207.9,16.59306652]
[1731312633824,4.8079,207.99,207.92,16.59306652]
[1731312633825,28.78,207.97,207.92,16.59306652]
[1731312635418,33.5884,207.97,207.9,16.59306652]
[1731312638043,28.78,207.97,207.9,16.59306652]
[1731312638230,16.59306652,207.98,207.94,16.59306652]
[1731312638231,28.78,207.98,207.94,16.59306652]
[1731312638435,28.78,207.98,207.96,16.59306652]
[1731312638638,28.78,207.98,207.94,16.59306652]
[1731312639355,33.5879,207.99,207.91,16.59306652]
[1731312639646,33.5879,207.99,207.9,16.59306652]
[1731312639647,28.78,207.97,207.9,16.59306652]
[1731312640028,28.78,207.97,207.92,16.59306652]
[1731312640745,28.78,207.99,207.92,16.59306652]
[1731312641157,28.78,207.99,207.94,16.59306652]
[1731312641326,28.78,207.99,207.92,16.59306652]
[1731312641852,28.78,207.99,207.94,16.59306652]
[1731312645754,28.78,207.99,207.83,20.1]
[1731312645936,45.37306652,207.98,207.91,20.0]
[1731312646548,28.78,207.98,207.92,16.59306652]
[1731312647037,33.5879,207.99,207.92,16.59306652]
[1731312649250,28.78,207.99,207.92,16.59306652]
[1731312652235,28.78,207.99,207.94,16.59306652]
[1731312653234,28.78,207.99,207.92,16.59306652]
[1731312653847,33.5879,207.99,207.92,16.59306652]
[1731312654958,44.23644168,207.99,207.91,10.64854168]
[1731312655341,44.23654168,207.99,207.83,0.1]
[1731312655542,44.23654168,207.99,207.92,10.64854168]
[1731312656058,44.23654168,207.99,207.9,10.64854168]
[1731312656844,10.64854168,207.97,207.9,10.64854168]
[1731312657145,33.588,207.99,207.87,10.64854168]
[1731312657146,28.78,207.94,207.87,10.64854168]
[1731312659658,39.42854168,207.94,207.81,20.0]
[1731312659960,39.42854168,207.94,207.87,10.64854168]
[1731312660754,28.78,207.94,207.87,10.64854168]
[1731312662357,28.78,207.93,207.87,10.64854168]
[1731312662765,28.78,207.91,207.81,20.0]
[1731312662954,44.0675,207.91,207.84,10.64854168]
[1731312663264,28.78,207.89,207.75,15.5466]
[1731312663449,28.78,207.89,207.82,10.64854168]
[1731312663953,33.5904,207.89,207.82,10.64854168]
[1731312665365,33.5904,207.89,207.74,2.62652868]
[1731312665565,33.5904,207.89,207.81,10.64854168]
[1731312666544,28.78,207.88,207.83,10.64854168]
[1731312667249,28.78,207.88,207.85,10.64854168]
[1731312667450,28.78,207.9,207.85,10.64854168]
[1731312667654,28.78,207.9,207.86,10.64854168]
[1731312668045,28.78,207.9,207.88,10.64854168]
[1731312668551,10.64854168,207.96,207.88,10.64854168]
[1731312668552,28.82,207.95,207.88,10.64854168]
[1731312668874,28.82,207.95,207.91,10.64854168]
[1731312669856,28.82,207.95,207.83,0.1]
[1731312669857,28.82,207.95,207.93,10.64854168]
[1731312670359,28.82,207.97,207.93,10.64854168]
[1731312670752,28.82,207.97,207.94,16.6349612]
[1731312670974,28.82,207.97,207.92,16.6349612]
[1731312671476,28.82,207.97,207.9,16.6349612]
[1731312671477,50.2633612,207.97,207.9,16.6349612]
[1731312671947,28.82,207.97,207.9,16.6349612]
[1731312673264,28.82,207.97,207.94,16.6349612]
[1731312673467,16.5886,208.0,207.96,16.6349612]
[1731312673660,6.6214,208.04,207.98,16.6349612]
[1731312673988,24.1242,208.13,207.9,16.6349612]
[1731312673989,43.5922612,208.11,208.02,16.6349612]
[1731312674470,43.5922612,208.11,207.92,2.64310919]
[1731312674471,16.6349612,208.05,207.92,2.64310919]
[1731312674651,28.82,208.04,207.97,16.6349612]
[1731312675852,28.82,208.02,207.95,16.6349612]
[1731312676950,28.82,208.01,207.95,16.6349612]
[1731312677448,28.82,208.01,207.97,16.6349612]
[1731312678064,28.82,208.03,207.95,16.6349612]
[1731312679162,28.82,208.03,207.97,16.6349612]
[1731312680357,33.627,208.03,207.95,16.6349612]
[1731312680551,28.82,208.03,207.95,16.6349612]
[1731312681675,28.82,207.99,207.93,16.6349612]
[1731312681847,4.807,208.03,207.91,16.6349612]
[1731312681848,28.82,207.97,207.91,16.6349612]
[1731312682255,15.5548,208.01,207.89,16.6349612]
[1731312682256,28.82,207.95,207.89,16.6349612]
[1731312682750,4.8085,207.97,207.85,16.6349612]
[1731312682751,28.82,207.92,207.85,16.6349612]
[1731312683150,28.82,207.95,207.89,16.6349612]
[1731312683352,28.82,207.95,207.93,16.6349612]
[1731312683867,28.82,207.98,207.93,16.6349612]
[1731312684290,28.82,207.98,207.91,16.6349612]
[1731312685883,28.82,207.96,207.89,16.6349612]
[1731312686459,28.82,207.94,207.87,16.6349612]
[1731312691261,33.6291,207.94,207.87,16.6349612]
[1731312692477,33.6291,207.94,207.8,23.776884]
[1731312692670,28.82,207.92,207.85,16.6349612]
[1731312694085,28.82,207.93,207.87,16.6349612]
[1731312694685,28.82,207.91,207.85,16.6349612]
[1731312694889,28.82,207.91,207.85,10.65496879]
[1731312695078,39.47496879,207.91,207.83,10.65496879]
[1731312695275,28.82,207.89,207.83,10.65496879]
[1731312695487,28.82,207.89,207.81,10.65496879]
[1731312695488,45.80796879,207.89,207.81,10.65496879]
[1731312695676,50.61816879,207.89,207.81,10.65496879]
[1731312696281,39.9632,207.89,207.83,10.65496879]
[1731312700374,45.80796879,207.89,207.82,10.65496879]
[1731312700575,35.153,207.89,207.82,10.65496879]
[1731312701293,28.82,207.87,207.82,10.65496879]
[1731312702293,28.82,207.88,207.82,10.65496879]
[1731312702589,10.65496879,207.87,207.75,43.776884]
[1731312702791,28.82,207.86,207.78,10.65496879]
[1731312703798,28.82,207.87,207.8,10.65496879]
[1731312704095,39.47496879,207.87,207.75,20.0]
[1731312704313,28.82,207.87,207.8,10.65496879]
[1731312704790,39.47496879,207.85,207.74,2.62834931]
[1731312704982,39.47496879,207.85,207.78,10.65496879]
[1731312705172,39.47496879,207.85,207.71,0.1]
[1731312705173,28.82,207.85,207.79,10.65496879]
[1731312705791,28.82,207.84,207.79,10.65496879]
[1731312705989,28.82,207.84,207.7,2.80505332]
[1731312706204,28.82,207.84,207.79,10.65496879]
[1731312706381,39.47496879,207.84,207.74,20.0]
[1731312706579,39.47496879,207.84,207.78,10.65496879]
[1731312707078,28.82,207.85,207.78,10.65496879]
[1731312707490,28.82,207.85,207.74,20.0]
[1731312707681,28.82,207.85,207.78,10.65496879]
[1731312708494,33.6312,207.85,207.78,10.65496879]
[1731312708694,28.82,207.83,207.76,10.65496879]
[1731312709099,44.8348,207.82,207.68,66.49675916]
[1731312709283,44.8348,207.82,207.7,23.776884]
[1731312709284,55.48976879,207.82,207.7,23.776884]
[1731312709474,55.48976879,207.82,207.74,10.65496879]
[1731312710301,60.30156879,207.82,207.74,10.65496879]
[1731312710603,42.9999958,207.82,207.74,10.65496879]
[1731312710896,32.34502701,207.82,207.74,10.65496879]
[1731312711289,27.53322701,207.82,207.74,10.65496879]
[1731312712483,6.1819,207.81,207.7,20.0]
[1731312712686,6.1819,207.81,207.74,10.65496879]
[1731312713985,16.83686879,207.81,207.74,10.65496879]
[1731312714784,10.65496879,207.79,207.66,16.013]
[1731312714983,10.65496879,207.77,207.7,10.65496879]
[1731312715503,10.65496879,207.76,207.66,16.013]
[1731312715711,10.65496879,207.75,207.68,10.65496879]
[1731312716201,10.65496879,207.75,207.61,16.6962]
[1731312716504,10.65496879,207.73,207.65,10.65496879]
[1731312716994,26.24645402,207.78,207.66,10.65496879]
[1731312716995,10.65496879,207.74,207.66,10.65496879]
[1731312717586,10.65496879,207.71,207.56,20.31329136]
[1731312717791,10.65496879,207.7,207.63,10.65496879]
[1731312717981,10.65496879,207.71,207.63,10.65496879]
[1731312718182,10.65496879,207.71,207.64,10.65496879]
[1731312719195,10.65496879,207.71,207.63,10.65496879]
[1731312719703,10.65496879,207.71,207.64,10.65496879]
[1731312720702,26.24645402,207.7,207.64,10.65496879]
[1731312721102,26.24645402,207.7,207.6,20.0]
[1731312721301,26.24645402,207.7,207.66,10.65496879]
[1731312721601,26.24645402,207.7,207.67,10.65496879]
[1731312721812,26.24645402,207.71,207.67,10.65496879]
[1731312722099,45.1032,207.74,207.7,10.65496879]
[1731312722304,45.1032,207.74,207.69,10.65496879]
[1731312723708,45.1032,207.74,207.7,10.65496879]
[1731312723907,45.1032,207.74,207.71,10.65496879]
[1731312724114,45.1032,207.74,207.69,10.65496879]
[1731312725010,45.50726879,207.77,207.69,10.65496879]
[1731312725790,45.50726879,207.77,207.63,0.1]
[1731312725791,6.0323,207.77,207.71,10.65496879]
[1731312726384,6.0323,207.77,207.73,10.65496879]
[1731312727494,15.5883,207.79,207.75,10.65496879]
[1731312728188,15.5883,207.79,207.73,10.65496879]
[1731312728403,6.1437,207.82,207.77,10.65496879]
[1731312731098,45.61866879,207.82,207.73,10.65496879]
[1731312731396,45.61866879,207.82,207.75,10.65496879]
[1731312732613,10.65496879,207.8,207.7,20.0]
[1731312732913,10.65496879,207.8,207.73,20.0]
[1731312734511,9.7602447,207.79,207.73,20.0]
[1731312734711,10.65496879,207.8,207.73,20.0]
[1731312735020,39.47496879,207.8,207.73,20.0]
[1731312735199,39.47496879,207.8,207.67,23.776884]
[1731312735519,39.47496879,207.78,207.69,10.65496879]
[1731312736316,10.65496879,207.74,207.67,10.65496879]
[1731312736621,28.82,207.74,207.67,10.65496879]
[1731312736916,6.1224,207.73,207.67,10.65496879]
[1731312737692,6.1224,207.73,207.62,20.1]
[1731312737894,6.1224,207.73,207.68,10.65496879]
[1731312738407,45.59736879,207.73,207.6,16.6466]
[1731312738613,50.41126879,207.73,207.65,10.65496879]
[1731312739329,34.9424,207.73,207.67,10.65496879]
[1731312740215,34.9424,207.73,207.6,16.7466]
[1731312740216,34.9424,207.73,207.69,10.65496879]
[1731312740808,6.1224,207.73,207.69,10.65496879]
[1731312741418,6.1224,207.73,207.71,10.65496879]
[1731312742008,44.6802,207.75,207.71,10.65496879]
[1731312742703,32.85051847,207.75,207.71,10.65496879]
[1731312743017,39.47496879,207.78,207.71,10.65496879]
[1731312743521,10.65496879,207.82,207.73,10.65496879]
[1731312743699,10.65496879,207.82,207.75,10.65496879]
[1731312743890,28.82,207.81,207.73,10.65496879]
[1731312744095,28.82,207.79,207.73,10.65496879]
[1731312744300,28.82,207.79,207.71,10.65496879]
[1731312745219,25.93823471,207.79,207.71,10.65496879]
[1731312745427,6.5818,207.79,207.71,10.65496879]
[1731312745715,10.65496879,207.78,207.69,10.65496879]
[1731312745922,26.74946879,207.78,207.69,10.65496879]
[1731312746293,26.74946879,207.78,207.71,10.65496879]
[1731312747006,16.0945,207.78,207.73,10.65496879]
[1731312747211,6.5818,207.79,207.73,10.65496879]
[1731312747408,6.5818,207.79,207.75,10.65496879]
[1731312749209,6.5818,207.79,207.73,10.65496879]
[1731312753308,10.65496879,207.82,207.75,10.65496879]
[1731312754320,15.8161,207.83,207.75,10.65496879]
[1731312755106,15.8161,207.83,207.68,61.73015339]
[1731312755309,15.8161,207.83,207.75,10.65496879]
[1731312756117,10.65496879,207.82,207.75,10.65496879]
[1731312756625,10.65496879,207.78,207.69,20.0]
[1731312756814,10.65496879,207.78,207.71,20.0]
[1731312759730,15.46736879,207.8,207.72,10.65496879]
[1731312759903,10.65496879,207.8,207.72,10.65496879]
[1731312761006,15.46726879,207.8,207.72,10.65496879]
[1731312762412,15.46726879,207.8,207.67,2.64242448]
[1731312762614,15.46726879,207.8,207.72,10.65496879]
[1731312763013,15.46726879,207.8,207.7,20.0]
[1731312763014,10.65496879,207.77,207.7,20.0]
[1731312763420,10.65496879,207.77,207.69,10.65496879]
[1731312766825,10.899,207.76,207.64,4.54459136]
[1731312767035,10.899,207.76,207.69,10.65496879]
[1731312768111,6.0858,207.76,207.69,10.65496879]
[1731312769836,6.0858,207.76,207.71,10.65496879]
[1731312770041,6.0858,207.76,207.7,10.65496879]
[1731312773030,6.0858,207.76,207.64,24.54459136]
[1731312773233,6.0858,207.76,207.7,10.65496879]
[1731312775815,6.0858,207.76,207.72,10.65496879]
[1731312778045,6.0858,207.76,207.7,10.65496879]
[1731312778344,6.0858,207.76,207.64,24.54459136]
[1731312778525,6.0858,207.76,207.69,10.65496879]
[1731312779647,6.0858,207.76,207.71,10.65496879]
[1731312780235,6.0858,207.76,207.64,24.54459136]
[1731312780438,6.0858,207.76,207.7,10.65496879]
[1731312780945,6.0858,207.76,207.64,24.54459136]
[1731312780946,6.0858,207.76,207.72,10.65496879]
[1731312782349,6.0858,207.76,207.7,10.65496879]
[1731312786247,6.0858,207.76,207.72,10.65496879]
[1731312786935,6.0858,207.76,207.7,10.65496879]
[1731312788439,6.2416,207.81,207.72,10.65496879]
[1731312788754,10.65496879,207.8,207.72,10.65496879]
[1731312789049,10.65496879,207.8,207.7,10.65496879]
[1731312790139,4.8125,207.79,207.7,10.65496879]
[1731312793043,10.65496879,207.77,207.66,20.0]
[1731312793253,15.46746879,207.79,207.7,20.0]
[1731312794829,15.46746879,207.79,207.69,10.65496879]
[1731312795745,6.2416,207.81,207.73,10.65496879]
[1731312799235,6.2416,207.81,207.7,2.52612831]
[1731312799436,6.2416,207.81,207.74,10.65496879]
[1731312799724,10.65496879,207.8,207.67,2.58887272]
[1731312799922,11.0538,207.81,207.68,20.0]
[1731312800125,10.65496879,207.8,207.73,10.65496879]
[1731312800546,6.2416,207.81,207.73,10.65496879]
[1731312801451,6.2416,207.81,207.75,10.65496879]
[1731312802642,11.56982135,207.83,207.77,10.65496879]
[1731312803154,28.82,207.89,207.76,20.0]
[1731312803155,10.65496879,207.89,207.81,10.65496879]
[1731312805250,10.65496879,207.89,207.76,20.0]
[1731312805251,159.9,207.92,207.85,10.65496879]
[1731312805460,170.55496879,207.92,207.85,10.65496879]
[1731312805635,159.9,207.92,207.85,10.65496879]
[1731312805837,10.65496879,207.94,207.8,23.776884]
[1731312806028,10.65496879,207.94,207.79,20.0]
[1731312806029,10.65496879,207.92,207.84,10.65496879]
[1731312806343,10.65496879,207.9,207.83,10.65496879]
[1731312807435,10.65496879,207.92,207.83,10.65496879]
[1731312809064,10.65496879,207.88,207.78,15.4658]
[1731312809386,10.65496879,207.88,207.81,20.0]
[1731312810457,10.65496879,207.88,207.8,10.65496879]
[1731312810766,10.65496879,207.84,207.76,10.65496879]
[1731312810941,10.65496879,207.85,207.77,10.65496879]
[1731312811264,10.65496879,207.85,207.78,10.65496879]
[1731312812250,10.65496879,207.86,207.78,10.65496879]
[1731312812849,10.65496879,207.84,207.74,20.0]
[1731312813053,21.3491,207.87,207.74,20.0]
[1731312813054,10.65496879,207.82,207.74,20.0]
[1731312813258,10.65496879,207.82,207.74,30.65496879]
[1731312814053,10.65496879,207.84,207.76,10.65496879]